bitfinex/quotes_SOLUSD_20250718
["timestamp","ask_amount","ask_price","bid_price","bid_amount"]
[1752839740515,0.1,178.56,178.55,16.78468397]
[1752839740999,0.1,178.56,178.55,30.07913474]
[1752839741206,0.1,178.56,178.55,30.74913474]
[1752839741917,0.1,178.56,178.55,31.30920194]
[1752839742298,0.1,178.56,178.55,23.61542325]
[1752839742500,0.1,178.56,178.55,30.74913474]
[1752839742717,0.1,178.56,178.55,59.44913474]
[1752839742896,0.1,178.56,178.55,60.00920194]
[1752839744309,0.1,178.56,178.55,52.31542325]
[1752839744619,0.1,178.56,178.55,30.07913474]
[1752839745516,0.1,178.56,178.55,22.38535605]
[1752839745719,0.1,178.56,178.55,30.07913474]
[1752839751129,0.76,178.56,178.55,16.78468397]
[1752839752905,8.45377869,178.56,178.55,16.78468397]
[1752839753104,16.1715565,178.56,178.55,16.78468397]
[1752839753413,16.1715565,178.56,178.52,16.78468397]
[1752839753715,8.37777781,178.55,178.52,16.78468397]
[1752839753905,8.37777781,178.55,178.54,26.0]
[1752839754108,16.0715565,178.55,178.52,16.78468397]
[1752839754310,0.68,178.54,178.52,16.78468397]
[1752839754623,8.39777781,178.54,178.52,16.78468397]
[1752839754789,0.68,178.53,178.52,16.78468397]
[1752839755400,16.0915565,178.53,178.46,16.78468397]
[1752839755603,16.0915565,178.52,178.47,36.37377869]
[1752839755801,15.4115565,178.52,178.51,26.0]
[1752839756612,16.0915565,178.52,178.51,26.0]
[1752839757823,7.69377869,178.53,178.51,26.0]
[1752839758319,8.37377869,178.53,178.51,26.0]
[1752839758521,0.68,178.52,178.51,26.0]
[1752839760300,8.37377869,178.54,178.51,26.0]
[1752839761225,0.68,178.53,178.51,26.0]
[1752839763333,7.69377869,178.54,178.51,26.0]
[1752839763507,0.68,178.53,178.51,26.0]
[1752839763898,7.69377869,178.53,178.51,26.0]
[1752839764124,0.68,178.52,178.51,42.78468397]
[1752839766925,5.60067208,178.55,178.51,42.78468397]
[1752839767141,7.69377869,178.53,178.51,42.78468397]
[1752839767625,8.37377869,178.54,178.51,42.78468397]
[1752839768827,0.78,178.56,178.52,17.47468397]
[1752839769134,8.47377869,178.56,178.52,17.47468397]
[1752839769905,14.07416678,178.56,178.52,17.47468397]
[1752839770326,0.78,178.56,178.52,17.47468397]
[1752839770527,8.47377869,178.56,178.52,17.47468397]
[1752839771632,7.79377869,178.56,178.53,0.69]
[1752839771930,0.1,178.56,178.54,16.78468397]
[1752839772630,13.39425604,178.56,178.51,26.03]
[1752839772820,7.69377869,178.53,178.52,16.78468397]
[1752839773528,8.37377869,178.53,178.52,16.78468397]
[1752839774117,15.83422872,178.53,178.52,16.78468397]
[1752839774328,8.14045003,178.53,178.52,16.78468397]
[1752839774637,21.43552822,178.53,178.51,26.03]
[1752839774840,7.46045003,178.52,178.51,42.81468397]
[1752839776135,5.60067208,178.55,178.51,42.81468397]
[1752839776346,7.69377869,178.54,178.51,42.81468397]
[1752839776638,8.37377869,178.54,178.51,42.81468397]
[1752839776942,15.42274906,178.54,178.51,42.81468397]
[1752839777114,7.04897037,178.54,178.51,43.50468397]
[1752839777311,7.69377869,178.54,178.51,43.50468397]
[1752839777818,0.1,178.56,178.52,25.16846266]
[1752839778213,0.1,178.56,178.54,16.78468397]
[1752839779235,0.1,178.56,178.55,25.16846266]
[1752839783230,0.1,178.56,178.53,24.47846266]
[1752839783409,0.1,178.56,178.53,25.16846266]
[1752839783610,0.1,178.56,178.54,0.69]
[1752839784029,0.1,178.56,178.54,7.69377869]
[1752839784210,0.1,178.56,178.55,8.40377869]
[1752839785342,0.1,178.56,178.55,0.71]
[1752839785525,0.1,178.56,178.55,8.40377869]
[1752839785723,0.1,178.56,178.55,43.49468397]
[1752839786036,0.1,178.56,178.55,51.18846266]
[1752839786409,0.1,178.56,178.55,43.49468397]
[1752839786613,0.1,178.56,178.55,51.18846266]
[1752839788538,0.1,178.56,178.55,56.78913474]
[1752839789942,0.1,178.56,178.55,57.34920194]
[1752839802428,0.1,178.56,178.55,56.07913474]
[1752839803155,0.1,178.56,178.55,56.78913474]
[1752839810639,0.1,178.56,178.55,84.69913474]
[1752839810853,0.1,178.56,178.55,56.07913474]
[1752839812151,0.1,178.56,178.55,48.38535605]
[1752839812352,0.1,178.56,178.55,56.07913474]
[1752839812561,0.1,178.56,178.55,48.38535605]
[1752839812861,0.1,178.56,178.55,50.47846266]
[1752839814655,0.1,178.56,178.55,42.78468397]
[1752839815156,0.1,178.56,178.55,50.47846266]
[1752839815558,6.36039879,178.56,178.52,7.72377869]
[1752839815866,0.66,178.55,178.53,16.78468397]
[1752839816069,0.66,178.55,178.53,42.78468397]
[1752839816257,0.66,178.54,178.52,16.81468397]
[1752839816464,0.66,178.53,178.52,16.81468397]
[1752839816970,6.26069959,178.55,178.52,16.81468397]
[1752839817175,0.66,178.54,178.52,16.81468397]
[1752839819067,6.26104174,178.54,178.52,16.81468397]
[1752839820468,8.35377869,178.53,178.52,0.03]
[1752839820779,13.95507819,178.53,178.52,0.03]
[1752839820960,13.95507819,178.53,178.51,1e-08]
[1752839821153,16.37837017,178.52,178.48,0.03]
[1752839821355,15.27728404,178.52,178.48,0.03]
[1752839821557,0.66,178.51,178.48,0.03]
[1752839821771,7.69377869,178.5,178.48,0.03]
[1752839822570,8.35377869,178.5,178.48,0.03]
[1752839822965,5.60255476,178.49,178.48,0.03]
[1752839825193,5.60255476,178.49,178.48,17.49468397]
[1752839826986,5.60192706,178.51,178.48,17.49468397]
[1752839827301,5.60192706,178.51,178.49,0.68]
[1752839827903,5.60192706,178.51,178.48,42.81468397]
[1752839828102,5.60192706,178.51,178.48,43.49468397]
[1752839833886,16.46555684,178.49,178.48,0.03]
[1752839834110,22.0681116,178.49,178.48,0.03]
[1752839837013,13.29633345,178.49,178.48,0.03]
[1752839837405,5.60255476,178.49,178.48,0.03]
[1752839838611,5.60224089,178.5,178.48,0.03]
[1752839840117,13.95601958,178.5,178.48,0.03]
[1752839840502,6.26224089,178.5,178.48,0.03]
[1752839840705,8.35377869,178.49,178.48,0.03]
[1752839842108,8.55924519,178.49,178.48,0.03]
[1752839842311,16.25302388,178.49,178.48,0.03]
[1752839842504,8.55924519,178.49,178.48,0.03]
[1752839842711,16.25302388,178.49,178.48,0.03]
[1752839843505,21.85557864,178.49,178.48,0.03]
[1752839844810,49.81557864,178.49,178.48,0.03]
[1752839845722,50.48557864,178.49,178.48,0.03]
[1752839853538,49.81557864,178.49,178.48,0.03]
[1752839853735,41.91633345,178.49,178.48,0.03]
[1752839857138,41.91633345,178.49,178.48,0.71]
[1752839857139,34.22255476,178.49,178.48,0.71]
[1752839857449,28.6,178.5,178.48,0.71]
[1752839857833,28.6,178.5,178.49,0.68]
[1752839858219,28.6,178.5,178.48,0.03]
[1752839858644,28.6,178.5,178.48,0.71]
[1752839859252,34.20243585,178.5,178.48,0.71]
[1752839859734,34.20243585,178.5,178.49,0.68]
[1752839861257,28.6,178.5,178.49,0.68]
[1752839861466,0.06,178.51,178.49,8.37377869]
[1752839861762,0.06,178.51,178.5,0.68]
[1752839862441,0.06,178.51,178.5,8.37377869]
[1752839862762,0.06,178.51,178.5,0.68]
[1752839863251,0.06,178.51,178.48,26.71]
[1752839863460,0.06,178.51,178.48,34.40377869]
[1752839863652,0.06,178.51,178.48,26.71]
[1752839864154,0.06,178.51,178.48,0.71]
[1752839865965,0.06,178.51,178.48,0.03]
[1752839866258,0.06,178.51,178.49,0.68]
[1752839868659,0.06,178.51,178.48,0.03]
[1752839868660,8.42377869,178.51,178.48,0.03]
[1752839868846,28.6,178.5,178.48,0.03]
[1752839870154,5.60255476,178.49,178.48,0.03]
[1752839873978,13.95633345,178.49,178.48,0.03]
[1752839874765,21.70564531,178.49,178.48,0.03]
[1752839875064,21.04564531,178.49,178.48,0.03]
[1752839880186,13.35186662,178.49,178.48,0.03]
[1752839880384,21.04564531,178.49,178.48,0.03]
[1752839881484,7.74931186,178.49,178.48,0.72]
[1752839881689,28.58,178.49,178.48,8.41377869]
[1752839881986,28.58,178.49,178.48,0.72]
[1752839882577,28.58,178.5,178.48,0.72]
[1752839882780,28.58,178.5,178.49,0.69]
[1752839884489,34.18224089,178.5,178.49,0.69]
[1752839884891,34.18224089,178.5,178.48,0.03]
[1752839885074,34.18224089,178.5,178.48,0.72]
[1752839885383,28.58,178.5,178.49,0.69]
[1752839888595,0.06,178.51,178.49,8.38377869]
[1752839888893,0.06,178.51,178.5,7.69377869]
[1752839889188,0.06,178.51,178.5,8.38377869]
[1752839890474,0.06,178.51,178.5,31.33092763]
[1752839890674,0.06,178.55,178.5,65.02470632]
[1752839890905,0.06,178.55,178.54,7.69377869]
[1752839891487,0.06,178.55,178.54,8.38377869]
[1752839895089,0.06,178.55,178.53,0.69]
[1752839895308,7.27338188,178.55,178.52,8.38377869]
[1752839895993,7.27338188,178.55,178.52,7.69377869]
[1752839896192,7.27338188,178.55,178.51,16.78468397]
[1752839896193,0.06,178.55,178.53,8.38377869]
[1752839896591,0.06,178.55,178.54,0.69]
[1752839897415,0.06,178.55,178.54,8.38377869]
[1752839904705,0.06,178.55,178.52,0.69]
[1752839904906,0.06,178.55,178.51,0.03]
[1752839904907,29.25,178.54,178.51,0.03]
[1752839905212,0.69,178.53,178.51,0.03]
[1752839905414,35.99532077,178.52,178.51,0.03]
[1752839906420,28.56,178.52,178.51,0.03]
[1752839906630,28.56,178.52,178.51,0.72]
[1752839908923,28.56,178.52,178.51,0.03]
[1752839911313,34.16161326,178.52,178.51,0.03]
[1752839911513,34.85161326,178.52,178.51,0.03]
[1752839912223,42.28693403,178.52,178.51,0.03]
[1752839914835,13.03693403,178.52,178.51,0.03]
[1752839915018,34.16161326,178.52,178.51,0.03]
[1752839915420,28.56,178.52,178.51,0.03]
[1752839916241,28.56,178.52,178.51,0.72]
[1752839918040,5.66073541,178.55,178.51,8.41377869]
[1752839918225,28.56,178.54,178.52,0.69]
[1752839918428,28.56,178.54,178.53,0.69]
[1752839918616,28.56,178.54,178.51,7.72377869]
[1752839918941,28.56,178.54,178.52,0.69]
[1752839919815,28.56,178.54,178.53,0.69]
[1752839920633,28.56,178.54,178.51,7.72377869]
[1752839920843,28.56,178.54,178.52,0.69]
[1752839921444,34.16101534,178.54,178.52,0.69]
[1752839921631,34.16101534,178.54,178.51,16.81468397]
[1752839921837,28.54,178.53,178.52,0.69]
[1752839922646,0.06,178.55,178.52,0.69]
[1752839922847,34.20080565,178.55,178.52,0.69]
[1752839927351,41.89458434,178.55,178.52,16.78468397]
[1752839927520,42.58458434,178.55,178.52,16.78468397]
[1752839927721,0.69,178.54,178.52,16.78468397]
[1752839928342,41.89458434,178.55,178.52,16.78468397]
[1752839928552,0.69,178.54,178.51,0.03]
[1752839928750,28.54,178.53,178.51,0.03]
[1752839929038,29.23,178.53,178.51,0.03]
[1752839929539,28.54,178.53,178.51,0.03]
[1752839930466,34.14136427,178.53,178.51,0.03]
[1752839931139,34.14136427,178.53,178.51,0.72]
[1752839932262,28.54,178.53,178.51,0.72]
[1752839932945,34.83134055,178.53,178.51,0.03]
[1752839933343,0.69,178.52,178.51,0.03]
[1752839933663,34.83134055,178.53,178.51,0.03]
[1752839935260,0.67,178.52,178.51,0.03]
[1752839935948,34.14134055,178.53,178.51,0.03]
[1752839936157,34.81134055,178.53,178.51,0.03]
[1752839936666,34.14134055,178.53,178.51,0.03]
[1752839937068,7.75377869,178.55,178.51,0.03]
[1752839937259,28.54,178.54,178.52,0.69]
[1752839937772,28.54,178.54,178.51,0.03]
[1752839938149,34.14099992,178.54,178.51,0.03]
[1752839938549,34.81099992,178.54,178.51,0.03]
[1752839939058,42.50477861,178.54,178.51,0.03]
[1752839939250,41.83477861,178.54,178.51,0.03]
[1752839939452,0.67,178.53,178.51,0.03]
[1752839939762,28.54,178.52,178.51,0.03]
[1752839939964,36.90377869,178.52,178.51,0.03]
[1752839940472,42.50539195,178.52,178.51,0.03]
[1752839941059,41.83539195,178.52,178.51,0.03]
[1752839941562,34.14161326,178.52,178.51,0.03]
[1752839941961,41.67082292,178.52,178.51,0.03]
[1752839942672,28.54,178.52,178.51,0.03]
[1752839943346,28.54,178.52,178.51,0.72]
[1752839947884,5.6607527,178.55,178.51,8.41377869]
[1752839948104,0.06,178.55,178.54,7.69377869]
[1752839948380,0.06,178.55,178.54,25.16846266]
[1752839954281,0.06,178.55,178.54,24.47846266]
[1752839954682,8.42377869,178.55,178.52,16.78468397]
[1752839954895,28.52,178.54,178.52,16.78468397]
[1752839955076,29.19,178.54,178.52,16.78468397]
[1752839955959,42.48486032,178.54,178.51,16.81468397]
[1752839961086,42.48486032,178.54,178.51,0.72]
[1752839962069,41.81486032,178.54,178.51,0.72]
[1752839962487,42.48486032,178.54,178.51,0.03]
[1752839963971,8.40377869,178.53,178.51,0.03]
[1752839964173,34.12161326,178.52,178.51,0.03]
[1752839965274,41.81539195,178.52,178.51,0.03]
[1752839965596,42.52539195,178.52,178.51,0.03]
[1752839968204,41.81539195,178.52,178.51,0.03]
[1752839969405,42.52539195,178.52,178.51,0.03]
[1752839969793,41.81539195,178.52,178.51,0.03]
[1752839973418,34.12161326,178.52,178.51,0.03]
[1752839975620,34.83161326,178.52,178.51,0.03]
[1752839976109,34.12161326,178.52,178.51,0.03]
[1752839977901,41.81539195,178.52,178.51,0.03]
[1752839978414,34.12161326,178.52,178.51,0.03]
[1752839978616,28.52,178.52,178.51,0.73]
[1752839981522,39.05203426,178.52,178.51,0.03]
[1752839985009,39.05203426,178.52,178.51,0.03]
[1752839986129,34.12161326,178.52,178.51,0.03]
[1752839986315,39.05203426,178.52,178.51,0.03]
[1752839986719,34.12161326,178.52,178.51,0.03]
[1752839986924,39.11203426,178.52,178.51,0.03]
[1752839988125,34.18161326,178.52,178.51,0.03]
[1752839989923,39.11203426,178.52,178.51,0.03]
[1752839990113,39.11203426,178.52,178.51,17.51468397]
[1752839990114,28.58,178.52,178.51,17.51468397]
[1752839990715,0.06,178.52,178.51,17.51468397]
[1752839991708,0.06,178.52,178.51,22.44510497]
[1752839997644,0.06,178.52,178.51,28.04703203]
[1752839998315,0.06,178.52,178.51,23.11661103]
[1752839998517,0.06,178.52,178.51,28.04703203]
[1752839999243,0.06,178.55,178.54,16.78468397]
[1752839999416,0.06,178.55,178.51,22.41661103]
[1752839999749,0.06,178.55,178.54,0.69]
[1752840001238,0.06,178.55,178.53,16.78468397]
[1752840001421,0.06,178.55,178.53,17.47468397]
[1752840001737,0.06,178.55,178.54,0.69]
[1752840003130,0.06,178.55,178.52,21.71510497]
[1752840003327,0.06,178.55,178.53,0.69]
[1752840003555,0.06,178.55,178.51,16.81468397]
[1752840003556,5.660421,178.55,178.51,16.81468397]
[1752840003744,4.930421,178.53,178.51,16.81468397]
[1752840003950,28.48,178.53,178.51,0.03]
[1752840004726,34.08159025,178.53,178.51,0.03]
[1752840005448,28.48,178.53,178.51,0.03]
[1752840005655,28.48,178.53,178.52,17.47468397]
[1752840006337,5.60106178,178.54,178.52,16.78468397]
[1752840006544,5.60106178,178.54,178.52,0.69]
[1752840006741,5.60106178,178.54,178.53,0.69]
[1752840006942,5.60106178,178.54,178.51,21.74510497]
[1752840007141,5.60106178,178.54,178.52,0.69]
[1752840007340,5.60106178,178.54,178.53,0.69]
[1752840007547,34.14074031,178.55,178.53,0.69]
[1752840008266,5.66074031,178.55,178.53,4.930421]
[1752840008438,28.54,178.55,178.54,17.47468397]
[1752840009138,34.14067208,178.55,178.54,16.78468397]
[1752840010037,39.74109308,178.55,178.52,0.03]
[1752840010245,34.14067208,178.55,178.52,0.03]
[1752840010445,39.74109308,178.55,178.52,0.03]
[1752840011961,34.81067208,178.55,178.52,0.03]
[1752840012345,34.14067208,178.55,178.53,0.69]
[1752840013040,34.14067208,178.55,178.52,7.73059921]
[1752840013241,34.14067208,178.55,178.52,8.42059921]
[1752840013748,34.14067208,178.55,178.52,0.72]
[1752840013950,34.14067208,178.55,178.52,8.42059921]
[1752840014959,34.14067208,178.55,178.52,7.73059921]
[1752840015135,0.67,178.54,178.52,0.03]
[1752840015341,28.48,178.53,178.52,0.03]
[1752840016463,34.0812995,178.53,178.52,0.03]
[1752840016765,28.48,178.53,178.52,0.03]
[1752840017244,28.48,178.54,178.52,25.20528318]
[1752840017451,28.48,178.54,178.53,0.69]
[1752840018161,28.48,178.54,178.53,8.39059921]
[1752840018672,28.48,178.54,178.53,7.70059921]
[1752840018862,28.48,178.54,178.52,25.20528318]
[1752840022149,34.08102793,178.54,178.52,24.51528318]
[1752840022965,28.48,178.54,178.52,24.51528318]
[1752840023476,28.48,178.54,178.52,25.20528318]
[1752840024566,28.48,178.54,178.52,24.51528318]
[1752840024767,0.06,178.55,178.53,8.42059921]
[1752840024948,0.06,178.55,178.54,7.70059921]
[1752840025148,0.06,178.55,178.54,8.42059921]
[1752840025448,0.06,178.55,178.54,25.20528318]
[1752840027870,0.06,178.55,178.54,7.70059921]
[1752840028478,0.06,178.55,178.54,8.42059921]
[1752840028866,0.06,178.55,178.54,0.72]
[1752840029087,0.06,178.55,178.54,8.42059921]
[1752840029791,0.06,178.55,178.54,25.20528318]
[1752840030080,0.06,178.55,178.54,30.80626895]
[1752840031268,0.1,178.56,178.55,16.78468397]
[1752840031483,0.1,178.56,178.55,25.20528318]
[1752840031786,0.1,178.56,178.55,25.76535038]
[1752840032487,0.1,178.6,178.58,42.78468397]
[1752840032785,0.1,178.6,178.58,50.48528318]
[1752840032961,0.1,178.6,178.58,51.20528318]
[1752840033158,0.1,178.6,178.59,0.72]
[1752840033777,0.1,178.6,178.59,8.42059921]
[1752840034390,0.1,178.6,178.59,7.70059921]
[1752840034700,0.1,178.6,178.58,50.48528318]
[1752840034883,0.1,178.6,178.58,51.20528318]
[1752840035086,0.1,178.6,178.59,25.20528318]
[1752840038992,0.1,178.6,178.59,22.42880473]
[1752840043196,0.1,178.6,178.59,28.02822239]
[1752840045802,0.1,178.6,178.59,76.16470543]
[1752840046100,0.1,178.6,178.59,23.10410163]
[1752840046284,0.1,178.6,178.59,28.02822239]
[1752840046699,0.1,178.6,178.59,28.58816415]
[1752840047212,0.1,178.6,178.59,31.35475232]
[1752840047385,0.1,178.6,178.59,39.04546125]
[1752840047586,0.1,178.6,178.59,45.30576125]
[1752840047801,0.1,178.62,178.61,18.38108397]
[1752840048012,0.1,178.62,178.61,55.07167196]
[1752840048205,0.1,178.62,178.61,55.79167196]
[1752840048991,0.1,178.62,178.61,61.39046262]
[1752840060317,0.1,178.62,178.61,31.35406262]
[1752840060509,0.1,178.62,178.61,59.21418356]
[1752840060831,0.1,178.62,178.61,24.4753929]
[1752840061002,0.1,178.62,178.61,16.78468397]
[1752840061003,0.82,178.62,178.61,16.78468397]
[1752840061322,6.41847721,178.62,178.61,16.78468397]
[1752840061621,0.82,178.62,178.61,16.78468397]
[1752840061806,5.35488789,178.62,178.61,16.78468397]
[1752840062194,0.1,178.62,178.61,16.78468397]
[1752840062814,0.82,178.62,178.59,7.69070893]
[1752840063025,7.8873039,178.61,178.59,16.78468397]
[1752840063220,8.6073039,178.61,178.59,16.78468397]
[1752840063719,0.72,178.6,178.59,16.78468397]
[1752840063930,7.8873039,178.61,178.59,24.4753929]
[1752840064117,0.1,178.62,178.61,16.78468397]
[1752840064700,0.1,178.62,178.61,25.1753929]
[1752840065619,0.1,178.62,178.61,25.73527196]
[1752840066123,0.1,178.62,178.61,31.33406262]
[1752840067016,0.1,178.62,178.61,51.50347463]
[1752840067210,0.1,178.62,178.61,59.19418356]
[1752840070210,0.06,178.63,178.62,16.78468397]
[1752840070416,0.06,178.63,178.62,25.1753929]
[1752840070808,0.06,178.63,178.62,30.77387011]
[1752840071539,0.06,178.64,178.62,30.77387011]
[1752840071724,0.06,178.65,178.64,16.78468397]
[1752840071925,0.06,178.65,178.64,24.4753929]
[1752840072132,0.06,178.66,178.65,24.4753929]
[1752840072326,0.06,178.66,178.65,53.4551466]
[1752840072523,0.06,178.66,178.65,54.1551466]
[1752840073038,0.06,178.66,178.65,64.19645429]
[1752840074639,0.04,178.66,178.65,64.19645429]
[1752840075034,0.06,178.71,178.69,42.78468397]
[1752840075231,0.06,178.71,178.69,50.4753929]
[1752840075419,0.06,178.71,178.69,51.1753929]
[1752840076836,0.06,178.71,178.69,56.77167696]
[1752840079651,0.08,178.7,178.69,56.77167696]
[1752840080033,0.08,178.7,178.69,42.78468397]
[1752840080232,0.8,178.7,178.69,50.4753929]
[1752840080430,0.8,178.7,178.69,24.4753929]
[1752840080852,0.8,178.7,178.69,50.4753929]
[1752840081026,0.73841503,178.7,178.69,50.4753929]
[1752840081446,0.73841503,178.7,178.69,42.78468397]
[1752840081647,0.73841503,178.7,178.69,16.78468397]
[1752840084438,0.01841503,178.7,178.69,24.4753929]
[1752840085260,0.01841503,178.7,178.69,50.4753929]
[1752840085843,0.73841503,178.7,178.69,50.4753929]
[1752840087642,0.73841503,178.7,178.69,42.78468397]
[1752840089172,0.01841503,178.7,178.69,50.4753929]
[1752840089956,0.01841503,178.7,178.69,42.78468397]
[1752840090156,0.01841503,178.7,178.69,50.4753929]
[1752840094053,0.73841503,178.7,178.69,50.4753929]
[1752840094752,0.73841503,178.7,178.69,42.81468397]
[1752840094949,0.73841503,178.7,178.69,50.5053929]
[1752840095262,0.73841503,178.7,178.69,42.81468397]
[1752840095852,0.01841503,178.7,178.69,42.81468397]
[1752840099074,0.73841503,178.7,178.69,42.81468397]
[1752840099266,8.42912396,178.7,178.69,0.03]
[1752840100448,6.33438593,178.7,178.69,0.03]
[1752840100648,21.06834074,178.7,178.69,0.03]
[1752840102357,29.64061404,178.7,178.69,0.03]
[1752840102559,7.69070893,178.64,178.59,24.4753929]
[1752840102885,0.72,178.63,178.62,26.0]
[1752840103365,8.08102365,178.63,178.62,26.0]
[1752840103884,0.72,178.63,178.62,26.0]
[1752840104757,8.38435699,178.63,178.62,26.0]
[1752840104965,13.28859317,178.64,178.62,26.0]
[1752840105170,6.31788424,178.64,178.62,26.0]
[1752840105766,0.72,178.63,178.62,26.0]
[1752840106665,13.28865639,178.64,178.62,26.0]
[1752840106868,14.00865639,178.64,178.62,26.0]
[1752840108282,0.72,178.64,178.62,26.0]
[1752840108481,5.59761941,178.65,178.62,26.0]
[1752840108664,0.72,178.68,178.64,7.69070893]
[1752840108865,14.00708934,178.69,178.64,8.38070893]
[1752840109178,8.41070893,178.68,178.63,24.4753929]
[1752840109672,8.41070893,178.68,178.63,25.1653929]
[1752840110586,0.73841503,178.7,178.66,7.69070893]
[1752840110785,8.42912396,178.7,178.66,17.47468397]
[1752840110975,7.70912396,178.7,178.66,16.78468397]
[1752840111159,7.69070893,178.68,178.63,24.4753929]
[1752840111360,8.41070893,178.68,178.63,25.1653929]
[1752840111581,0.72,178.68,178.64,7.69070893]
[1752840112162,6.31686882,178.68,178.64,7.69070893]
[1752840112399,0.72,178.67,178.63,16.78468397]
[1752840112590,13.28757775,178.68,178.63,24.4753929]
[1752840112774,0.72,178.66,178.63,16.78468397]
[1752840112973,8.31828911,178.66,178.63,16.78468397]
[1752840114092,5.59717725,178.67,178.63,25.1753929]
[1752840114670,5.59717725,178.67,178.63,17.48468397]
[1752840114671,6.31717725,178.67,178.63,17.48468397]
[1752840114878,6.31717725,178.67,178.63,25.1753929]
[1752840115589,13.28741673,178.68,178.64,0.7]
[1752840115792,14.00741673,178.68,178.64,0.7]
[1752840116806,6.3167078,178.68,178.63,24.4753929]
[1752840116982,14.00741673,178.68,178.63,24.4753929]
[1752840117307,14.00741673,178.68,178.63,25.1753929]
[1752840117700,6.3167078,178.68,178.63,25.1753929]
[1752840117900,5.5967078,178.68,178.64,8.39070893]
[1752840118103,5.5967078,178.68,178.65,0.7]
[1752840118490,13.4838858,178.68,178.65,0.7]
[1752840118912,7.887178,178.67,178.65,0.7]
[1752840119795,7.887178,178.67,178.63,25.1753929]
[1752840119984,7.887178,178.67,178.64,0.7]
[1752840120991,5.5967078,178.68,178.64,8.39070893]
[1752840121398,6.3167078,178.68,178.64,8.39070893]
[1752840121595,0.72,178.67,178.64,7.69070893]
[1752840121915,13.34929362,178.68,178.64,8.39070893]
[1752840122293,7.74976915,178.67,178.64,8.39070893]
[1752840122908,7.74976915,178.67,178.65,0.7]
[1752840123118,5.5967078,178.68,178.65,0.7]
[1752840123309,5.5967078,178.68,178.64,7.69070893]
[1752840123520,5.5967078,178.68,178.65,0.7]
[1752840123823,13.34647695,178.68,178.65,0.7]
[1752840124114,14.06647695,178.68,178.64,7.69070893]
[1752840124820,6.3167078,178.68,178.64,8.39070893]
[1752840124995,7.75070893,178.69,178.64,7.69070893]
[1752840125199,0.06,178.69,178.65,25.1753929]
[1752840125398,0.06,178.69,178.66,0.7]
[1752840125593,0.06,178.69,178.66,8.39070893]
[1752840127124,0.06,178.69,178.66,0.7]
[1752840134516,0.06,178.69,178.65,24.4753929]
[1752840134730,6.37636304,178.69,178.65,25.1753929]
[1752840135550,6.37636304,178.69,178.66,0.7]
[1752840135718,5.65636304,178.69,178.66,0.7]
[1752840138240,0.06,178.69,178.66,0.7]
[1752840139248,15.63598364,178.69,178.66,0.7]
[1752840139746,21.23232658,178.69,178.66,0.7]
[1752840139942,20.51232658,178.69,178.66,0.7]
[1752840140150,12.82161765,178.69,178.66,0.7]
[1752840140335,0.06,178.69,178.65,24.4753929]
[1752840140529,0.06,178.69,178.67,0.7]
[1752840140731,0.06,178.69,178.65,24.4753929]
[1752840140945,0.06,178.69,178.65,17.48468397]
[1752840140946,17.74314646,178.69,178.65,17.48468397]
[1752840141141,4.92156767,178.67,178.63,0.7]
[1752840141326,13.11739793,178.66,178.62,0.03]
[1752840141528,13.11739793,178.66,178.62,0.73]
[1752840141839,11.23914386,178.65,178.62,16.81468397]
[1752840142161,11.23914386,178.65,178.62,0.03]
[1752840142162,47.11497412,178.65,178.62,0.03]
[1752840142336,4.92156767,178.64,178.62,0.03]
[1752840142523,8.16724218,178.64,178.62,0.03]